bitfinex-derivatives/quotes_SOLF0:USTF0_20250609
["timestamp","ask_amount","ask_price","bid_price","bid_amount"]
[1749443550376,0.04713171,151.26,151.23,4.2878618]
[1749443550580,0.04713171,151.26,151.25,4.2878618]
[1749443550774,5.7063241,151.26,151.25,10.8961618]
[1749443551175,5.7063241,151.26,151.23,4.2878618]
[1749443551474,5.65919239,151.25,151.23,6.6089]
[1749443551675,5.64465745,151.24,151.23,6.6089]
[1749443552081,5.64465745,151.24,151.22,6.6094]
[1749443552377,6.6083,151.25,151.22,6.6094]
[1749443552575,5.64316913,151.24,151.22,6.6094]
[1749443552880,6.6083,151.25,151.22,6.6094]
[1749443553077,5.6431363,151.24,151.22,6.6094]
[1749443553279,6.6083,151.25,151.21,40.3498]
[1749443553478,5.64173995,151.24,151.21,40.3498]
[1749443553679,5.64377338,151.23,151.21,40.3498]
[1749443553981,5.64429343,151.22,151.21,33.74]
[1749443554184,10.51302633,151.26,151.21,33.74]
[1749443554482,10.06154124,151.25,151.21,33.74]
[1749443554682,12.25138501,151.24,151.21,33.74]
[1749443554882,5.64238501,151.23,151.21,33.74]
[1749443555079,12.25198501,151.22,151.21,33.74]
[1749443555278,12.25198501,151.22,151.18,33.76]
[1749443555479,6.66024115,151.22,151.18,33.76]
[1749443556186,6.6101,151.21,151.18,33.76]
[1749443556389,0.05064115,151.22,151.18,33.76]
[1749443557387,6.66054115,151.22,151.19,6.6106]
[1749443557691,0.05064115,151.22,151.18,33.76]
[1749443558388,0.05064115,151.22,151.19,6.6106]
[1749443559186,5.67446187,151.22,151.19,6.6106]
[1749443559387,12.28406187,151.22,151.19,6.6106]
[1749443559588,6.66024115,151.22,151.19,6.6106]
[1749443561399,6.66024115,151.22,151.2,6.6104]
[1749443561583,0.05064115,151.22,151.2,6.6104]
[1749443562092,5.66478849,151.22,151.19,6.6107]
[1749443562298,6.66044115,151.22,151.19,6.6107]
[1749443564182,6.66044115,151.22,151.2,6.6104]
[1749443564583,0.05064115,151.22,151.21,4.2878618]
[1749443564791,0.05064115,151.22,151.21,10.8978618]
[1749443565294,0.05064115,151.22,151.18,4.2878618]
[1749443565889,5.66204683,151.22,151.19,6.6106]
[1749443566295,0.05064115,151.22,151.19,6.6106]
[1749443566805,5.65494558,151.22,151.17,33.5]
[1749443567097,0.05064115,151.22,151.17,33.5]
[1749443567301,6.6107,151.2,151.17,40.1115]
[1749443567502,0.05064115,151.22,151.17,33.5]
[1749443568001,6.6102,151.21,151.18,6.6111]
[1749443570203,6.6102,151.21,151.17,40.1117]
[1749443571006,6.6105,151.2,151.17,40.1117]
[1749443571606,6.66044115,151.22,151.18,6.6113]
[1749443572405,5.61444174,151.21,151.18,6.6113]
[1749443572907,5.61444174,151.21,151.17,40.1116]
[1749443573105,0.05064115,151.22,151.17,40.1116]
[1749443573407,6.6102,151.21,151.17,40.1116]
[1749443573607,6.6102,151.21,151.18,6.6113]
[1749443574208,12.22608711,151.21,151.18,6.6113]
[1749443575208,6.6102,151.21,151.18,6.6113]
[1749443577112,9.90551742,151.2,151.17,33.5]
[1749443577312,5.61765562,151.19,151.17,33.5]
[1749443577516,6.6109,151.19,151.17,33.5]
[1749443577811,5.61681805,151.18,151.17,33.5]
[1749443578412,6.6118,151.17,151.14,40.1129]
[1749443578609,6.66200178,151.17,151.14,40.1129]
[1749443579312,0.05020178,151.17,151.16,6.6122]
[1749443580212,0.05020178,151.17,151.15,6.6124]
[1749443584118,5.61228848,151.16,151.14,33.5]
[1749443584416,0.05020178,151.17,151.14,33.5]
[1749443584613,12.22641616,151.16,151.14,33.5]
[1749443584814,6.6126,151.16,151.14,33.5]
[1749443586214,0.05020178,151.17,151.12,6.6139]
[1749443586419,5.60900234,151.16,151.1,4.4632]
[1749443586623,5.60900234,151.15,151.1,4.4632]
[1749443586818,10.95016358,151.17,151.1,8.7510618]
[1749443587120,5.60731886,151.16,151.1,8.7510618]
[1749443587418,4.33806358,151.17,151.1,8.7510618]
[1749443587419,5.60731886,151.15,151.1,33.52]
[1749443587618,5.60731886,151.14,151.1,33.52]
[1749443587819,0.04996211,151.14,151.1,33.52]
[1749443588516,0.04996211,151.14,151.11,6.6143]
[1749443589016,0.04996211,151.14,151.12,6.6138]
[1749443589216,0.04996211,151.14,151.1,33.52]
[1749443589524,16.51056967,151.13,151.1,33.52]
[1749443589822,5.60920787,151.12,151.1,33.52]
[1749443590115,4.2878618,151.13,151.1,33.52]
[1749443590324,5.60601872,151.12,151.1,33.52]
[1749443590517,5.60601872,151.11,151.1,33.52]
[1749443591517,4.2878618,151.13,151.1,33.52]
[1749443591715,5.60362282,151.12,151.1,33.52]
[1749443591920,5.60362282,151.11,151.1,33.52]
[1749443592719,10.9017618,151.13,151.1,33.52]
[1749443592920,5.588679,151.12,151.1,33.52]
[1749443593121,0.04996211,151.14,151.1,33.52]
[1749443593314,5.58837301,151.13,151.1,33.52]
[1749443593518,0.04996211,151.14,151.1,33.52]
[1749443593718,5.5895548,151.13,151.11,6.6141]
[1749443593916,0.04996211,151.14,151.11,6.6141]
[1749443594117,5.58837306,151.13,151.11,6.6141]
[1749443594311,0.04996211,151.14,151.11,6.6141]
[1749443594518,5.58917165,151.13,151.11,6.6141]
[1749443594724,0.04996211,151.14,151.11,6.6141]
[1749443594922,5.58838954,151.13,151.11,6.6141]
[1749443595222,0.04996211,151.14,151.11,6.6141]
[1749443595416,5.58886863,151.13,151.11,6.6141]
[1749443595722,0.04996211,151.14,151.11,6.6141]
[1749443595923,5.58677511,151.13,151.11,6.6141]
[1749443596117,0.04996211,151.14,151.11,6.6141]
[1749443596422,5.58809831,151.13,151.11,6.6141]
[1749443596622,0.04996211,151.14,151.11,6.6141]
[1749443596824,5.58748497,151.13,151.11,6.6141]
[1749443597023,0.04996211,151.14,151.11,6.6141]
[1749443597323,5.58752602,151.13,151.11,6.6141]
[1749443597625,0.04996211,151.14,151.11,6.6141]
[1749443597825,5.59168515,151.13,151.11,6.6141]
[1749443598025,0.04996211,151.14,151.11,6.6141]
[1749443598225,5.59164512,151.13,151.11,6.6141]
[1749443598427,6.66306211,151.14,151.11,6.6141]
[1749443598624,5.59243234,151.13,151.11,6.6141]
[1749443598823,6.66306211,151.14,151.11,6.6141]
[1749443599024,5.59198526,151.13,151.11,6.6141]
[1749443599226,6.66306211,151.14,151.11,6.6141]
[1749443599527,5.59227479,151.13,151.12,6.614]
[1749443600024,0.04996211,151.14,151.12,6.614]
[1749443602221,0.04996211,151.14,151.1,33.52]
[1749443602822,0.04996211,151.14,151.12,6.6136]
[1749443603524,0.04996211,151.14,151.13,6.6135]
[1749443603725,5.6465614,151.14,151.13,6.6135]
[1749443607132,5.6465614,151.14,151.13,10.9013618]
[1749443607327,0.04996211,151.14,151.13,10.9013618]
[1749443616630,0.04996211,151.14,151.13,4.2878618]
[1749443618433,5.66895253,151.14,151.11,4.2878618]
[1749443618736,5.61899042,151.13,151.11,4.2878618]
[1749443618929,0.04996211,151.14,151.11,4.2878618]
[1749443619227,5.6186898,151.13,151.11,4.2878618]
[1749443619433,0.04996211,151.14,151.1,33.52]
[1749443619622,5.61978306,151.13,151.1,33.52]
[1749443619824,6.66326211,151.14,151.11,6.6144]
[1749443620029,5.61998371,151.13,151.11,6.6144]
[1749443620225,5.61998371,151.12,151.1,33.52]
[1749443620536,5.61998371,151.11,151.1,33.52]
[1749443620735,5.61998371,151.11,151.07,37.9478618]
[1749443620932,5.61998371,151.1,151.08,6.6156]
[1749443621133,6.6144,151.11,151.08,6.6156]
[1749443621330,5.6209693,151.1,151.08,6.6156]
[1749443621525,5.6209693,151.09,151.08,6.6156]
[1749443621733,0.0454476,151.1,151.08,6.6156]
[1749443621935,5.61466991,151.09,151.08,6.6156]
[1749443623134,5.61466991,151.09,151.07,40.276]
[1749443623337,5.61466991,151.08,151.07,40.276]
[1749443627540,0.0454476,151.1,151.09,6.6153]
[1749443627738,5.63714821,151.1,151.09,6.6153]
[1749443628739,0.0454476,151.1,151.09,6.6153]
[1749443628942,0.0454476,151.1,151.09,10.9031618]
[1749443636955,6.14036175,151.16,151.12,6.6137]
[1749443637157,10.00344947,151.15,151.12,6.6137]
[1749443637450,10.00344947,151.14,151.12,6.6137]
[1749443637656,5.60377331,151.13,151.12,6.6137]
[1749443640762,5.60377331,151.13,151.11,44.3076094]
[1749443641057,5.60377331,151.12,151.11,40.0197476]
[1749443641260,5.60377331,151.12,151.11,33.4054476]
[1749443641456,0.04873254,151.14,151.11,33.4054476]
[1749443641758,5.60984794,151.13,151.11,33.4054476]
[1749443641961,5.60984794,151.12,151.11,33.4054476]
[1749443644062,5.60984794,151.12,151.11,40.0198476]
[1749443644261,5.60984794,151.12,151.11,6.6598476]
[1749443644462,5.60984794,151.12,151.11,10.9477094]
[1749443665473,5.60984794,151.12,151.11,9.40969544]
[1749443668577,5.60984794,151.12,151.11,2.79529544]
[1749443668770,10.03579747,151.12,151.11,2.79529544]
[1749443668971,10.03542327,151.12,151.11,2.79529544]
[1749443669477,10.03768974,151.12,151.11,2.79529544]
[1749443670175,10.03878458,151.12,151.11,2.79529544]
[1749443670478,10.03878576,151.12,151.11,2.79529544]
[1749443670677,10.03872364,151.12,151.11,2.79529544]
[1749443670880,5.62482087,151.12,151.11,2.79529544]
[1749443671081,10.05362872,151.12,151.11,2.79529544]
[1749443671281,10.05357753,151.12,151.11,2.79529544]
[1749443671977,10.05966876,151.12,151.11,2.79529544]
[1749443672382,10.05967118,151.12,151.11,2.79529544]
[1749443672681,10.05966178,151.12,151.11,2.79529544]
[1749443673480,5.62482087,151.12,151.11,2.79529544]
[1749443673683,16.22759886,151.12,151.11,2.79529544]
[1749443673981,16.22763016,151.12,151.11,2.79529544]
[1749443674184,16.22760212,151.12,151.11,2.79529544]
[1749443674381,16.22750107,151.12,151.11,2.79529544]
[1749443675382,11.8027082,151.12,151.11,2.79529544]
[1749443675574,18.4167082,151.12,151.11,0.0454476]
[1749443675780,23.21000039,151.12,151.11,0.0454476]
[1749443676086,18.26954559,151.12,151.1,33.36]
[1749443676384,16.22782628,151.11,151.1,33.36]
[1749443676590,10.04648437,151.11,151.1,33.36]
[1749443676783,10.04635813,151.11,151.1,33.36]
[1749443676985,5.62482087,151.11,151.1,33.36]
[1749443677185,16.22466381,151.11,151.1,33.36]
[1749443677482,11.80298338,151.11,151.1,33.36]
[1749443677685,16.22465494,151.11,151.1,33.36]
[1749443677886,16.2245636,151.11,151.1,33.36]
[1749443678187,11.80298338,151.11,151.1,33.36]
[1749443678385,22.8341619,151.11,151.1,33.36]
[1749443679378,22.83185268,151.11,151.1,33.36]
[1749443679683,22.83210375,151.11,151.1,33.36]
[1749443679885,22.83210377,151.11,151.1,33.36]
[1749443681487,18.41738338,151.11,151.1,33.36]
[1749443682085,22.8287443,151.11,151.1,33.36]
[1749443682879,16.65058179,151.11,151.1,33.36]
[1749443683086,22.81651589,151.11,151.1,33.36]
[1749443683384,22.81651946,151.11,151.1,33.36]
[1749443684388,10.02395695,151.11,151.1,33.36]
[1749443684879,10.0209028,151.11,151.1,33.36]
[1749443685084,5.62482087,151.11,151.1,33.36]
[1749443685292,10.02095362,151.11,151.1,33.36]
[1749443686290,5.62482087,151.11,151.1,33.36]
[1749443686587,10.02070724,151.11,151.1,42.72464784]
[1749443686890,5.62482087,151.11,151.1,42.72464784]
[1749443687094,10.02084022,151.11,151.1,42.72464784]
[1749443688089,5.62482087,151.11,151.1,42.72464784]
[1749443688285,10.02014508,151.11,151.1,42.72464784]
[1749443688489,10.02144544,151.11,151.1,42.72464784]
[1749443688787,10.02120852,151.11,151.1,42.72464784]
[1749443689298,10.02120852,151.11,151.1,36.10984784]
[1749443689790,10.02147576,151.11,151.1,36.10984784]
[1749443690296,10.02108821,151.11,151.1,36.10984784]
[1749443690497,10.02117759,151.11,151.1,36.10984784]
[1749443690796,10.02122283,151.11,151.1,36.10984784]
[1749443690996,9.99963115,151.11,151.1,36.10984784]
[1749443691597,9.9996052,151.11,151.1,36.10984784]
[1749443691797,5.60322919,151.11,151.1,42.72464784]
[1749443693695,0.04873254,151.14,151.13,6.6135]
[1749443693900,4.4548777,151.14,151.13,9.36334784]
[1749443694195,0.04873254,151.14,151.13,9.36334784]
[1749443698796,6.17016901,151.18,151.16,6.612]
[1749443698996,6.17016901,151.18,151.17,2.74984784]
[1749443699197,4.43257087,151.18,151.17,2.74984784]
[1749443699401,4.43257087,151.18,151.17,9.36164784]
[1749443699702,6.17016901,151.2,151.17,2.74984784]
[1749443699901,6.22097161,151.2,151.19,2.74984784]
[1749443700103,4.48666004,151.2,151.19,2.74984784]
[1749443700301,0.0508026,151.2,151.19,2.74984784]
[1749443700500,4.48617027,151.2,151.19,2.74984784]
[1749443701201,0.0508026,151.2,151.19,9.36074784]
[1749443702301,6.17016901,151.23,151.19,2.74984784]
[1749443702505,6.17016901,151.24,151.22,2.74984784]
[1749443702692,6.17016901,151.24,151.23,2.74984784]
[1749443702898,4.43908106,151.24,151.23,2.74984784]
[1749443703205,4.43908106,151.24,151.22,6.65219813]
[1749443703702,0.05053904,151.25,151.22,6.65219813]
[1749443703898,4.44486615,151.24,151.22,6.65219813]
[1749443704102,0.05053904,151.25,151.22,6.65219813]
[1749443705599,0.05053904,151.25,151.22,0.04289813]
[1749443705800,5.58333236,151.24,151.22,0.04289813]
[1749443705996,5.58333236,151.23,151.22,0.04289813]
[1749443707703,5.58333236,151.24,151.22,0.04289813]
[1749443708003,6.65883904,151.25,151.22,0.04289813]
[1749443708303,5.59752776,151.24,151.22,0.04289813]
[1749443708608,6.65883904,151.25,151.22,0.04289813]
[1749443708799,5.59528618,151.24,151.22,0.04289813]
[1749443709001,0.05053904,151.25,151.22,6.65249813]
[1749443709199,5.59531891,151.24,151.22,6.65249813]
[1749443709502,5.59336416,151.24,151.22,6.65249813]
[1749443709903,5.64410447,151.25,151.22,6.65249813]
[1749443710205,5.64410447,151.25,151.23,4.29026786]
[1749443710404,0.05053904,151.25,151.23,4.29026786]
[1749443710608,0.05053904,151.25,151.24,33.12]
[1749443710905,0.05053904,151.25,151.24,39.7287]
[1749443717906,6.6063,151.3,151.26,6.6074]
[1749443718211,5.58542997,151.3,151.25,4.29026786]
[1749443718609,6.6068,151.29,151.25,10.89836786]
[1749443718912,6.65178511,151.29,151.25,6.65748711]
[1749443720308,4.33525297,151.29,151.25,0.04938711]
[1749443720505,9.92068294,151.29,151.25,0.04938711]
[1749443720707,6.6077,151.27,151.25,0.04938711]
[1749443720909,5.58542997,151.28,151.25,0.04938711]
[1749443721108,4.33525297,151.29,151.25,0.04938711]
[1749443721309,6.6078,151.26,151.25,0.04938711]
[1749443723510,6.6076,151.27,151.25,0.04938711]
[1749443725614,5.58866507,151.28,151.25,0.04938711]
[1749443725615,6.6078,151.26,151.25,0.04938711]
[1749443731118,5.58770036,151.28,151.25,0.04938711]
[1749443731422,0.04498511,151.29,151.27,2.74459436]
[1749443731620,5.58958002,151.28,151.27,2.74459436]
[1749443733222,5.58958002,151.28,151.26,10.89605601]
[1749443733521,5.58958002,151.27,151.26,10.89605601]
[1749443733727,5.58958002,151.28,151.26,10.89605601]
[1749443734021,5.59451023,151.27,151.26,10.89605601]
[1749443734222,5.59451023,151.27,151.26,4.28825601]
[1749443737822,10.08583025,151.27,151.26,4.28825601]
[1749443738224,10.08583025,151.27,151.25,0.04938711]
[1749443738428,5.59451023,151.26,151.25,0.04938711]
[1749443739526,10.10362442,151.26,151.25,0.04938711]
[1749443739720,16.71142442,151.26,151.25,0.04938711]
[1749443740123,5.59451023,151.26,151.25,0.04938711]
[1749443740318,10.13313796,151.26,151.25,0.04938711]
[1749443740521,10.13313593,151.26,151.25,0.04938711]
[1749443741227,5.62372799,151.26,151.25,0.04938711]
[1749443742721,10.14015829,151.26,151.25,0.04938711]
[1749443743331,10.14015829,151.26,151.25,6.65768711]
[1749443743628,5.62372799,151.26,151.25,6.65768711]
[1749443745830,0.04498511,151.29,151.28,6.607]
[1749443746130,4.56434441,151.29,151.28,43.99525601]
[1749443746331,6.15731451,151.31,151.3,6.6061]
[1749443746522,6.15731451,151.32,151.3,4.28825601]
[1749443747528,6.15731451,151.32,151.31,6.6057]
[1749443747728,6.20162486,151.33,151.31,6.6057]
[1749443748528,6.20162486,151.33,151.3,4.28825601]
[1749443748729,0.04431035,151.33,151.32,33.08]
[1749443749734,0.04431035,151.33,151.32,39.6852]
[1749443750232,0.04431035,151.33,151.32,33.08]
[1749443751432,0.04431035,151.33,151.32,39.6852]
[1749443752932,0.04431035,151.33,151.32,43.97345601]
[1749443757732,5.66919846,151.33,151.32,43.97345601]
[1749443760142,5.66919846,151.33,151.32,37.36825601]
[1749443761243,5.66919846,151.33,151.32,35.82253196]
[1749443763346,12.27399846,151.33,151.32,35.82253196]
[1749443764446,5.66919846,151.33,151.32,35.82253196]
[1749443765543,5.66919846,151.33,151.32,33.08]
[1749443765745,6.6059,151.31,151.29,33.10935366]
[1749443765945,8.36742007,151.3,151.29,0.04935366]
[1749443766341,6.6074,151.27,151.26,33.06]
[1749443766542,6.6074,151.27,151.07,357.0]
[1749443766543,8.36742007,151.27,151.23,33.06]
[1749443766747,2.74253196,151.25,151.23,33.06]
[1749443767251,6.6081,151.26,151.23,33.06]
[1749443767449,5.61765182,151.25,151.23,33.10687149]
[1749443767653,6.65568055,151.26,151.23,33.10687149]
[1749443767951,5.61793202,151.25,151.23,33.10687149]
[1749443768256,0.04758055,151.26,151.23,39.71597149]
[1749443768547,5.61793442,151.25,151.23,33.10687149]
[1749443768747,0.04758055,151.26,151.24,6.6084]
[1749443768940,5.61828915,151.25,151.24,6.6084]
[1749443769142,0.04758055,151.26,151.24,6.6087]
[1749443769442,5.61830942,151.25,151.24,6.6087]
[1749443771244,5.61830942,151.25,151.23,39.71587149]
[1749443771444,0.04758055,151.26,151.23,39.71587149]
[1749443771650,5.59590754,151.25,151.23,39.71587149]
[1749443771846,0.04758055,151.26,151.23,39.71587149]
[1749443772047,5.59608897,151.25,151.23,39.71587149]
[1749443772250,0.04758055,151.26,151.23,39.71587149]
[1749443772449,5.59294008,151.25,151.23,39.71587149]
[1749443772749,0.04758055,151.26,151.23,39.71587149]
[1749443772951,5.59306246,151.25,151.23,39.71587149]
[1749443773148,0.04758055,151.26,151.25,6.6083]
[1749443773348,5.64108411,151.26,151.23,37.398601]
[1749443773550,0.04758055,151.26,151.23,37.398601]
[1749443774252,0.04758055,151.26,151.23,33.10687149]
[1749443774452,5.59224055,151.25,151.23,33.10687149]
[1749443774652,0.04758055,151.26,151.23,39.71567149]
[1749443774853,5.59259995,151.25,151.23,39.71567149]
[1749443775152,0.04758055,151.26,151.23,39.71567149]
[1749443775348,0.04758055,151.26,151.24,6.6086]
[1749443775557,5.5926034,151.25,151.24,6.6086]
[1749443776055,0.04758055,151.26,151.24,6.6086]
[1749443776451,0.04758055,151.26,151.25,6.6083]
[1749443777248,0.04758055,151.26,151.25,10.90002951]
[1749443780754,4.3779,151.32,151.28,6.6066]
[1749443780951,5.56943719,151.31,151.28,39.6666]
[1749443781151,5.56943719,151.3,151.28,39.6666]
[1749443781356,5.56943719,151.29,151.28,39.6666]
[1749443784161,0.04503392,151.3,151.29,6.6065]
[1749443784361,5.62414855,151.3,151.29,6.6065]
[1749443785068,5.62414855,151.3,151.28,39.6668]
[1749443785370,5.57911463,151.29,151.28,39.6668]
[1749443788363,0.04503392,151.3,151.29,6.6065]
[1749443788566,5.62803879,151.3,151.28,33.06]
[1749443788769,5.58300487,151.29,151.28,33.06]
[1749443788968,5.58300487,151.29,151.28,39.667]
[1749443789575,0.04503392,151.3,151.28,33.06]
[1749443790372,0.04503392,151.3,151.29,6.6065]
[1749443790572,5.62763177,151.3,151.29,6.6065]
[1749443792472,0.04503392,151.3,151.29,6.6065]
[1749443793471,0.04503392,151.3,151.29,10.89822951]
[1749443804586,0.04503392,151.3,151.29,4.29172951]
[1749443806890,0.04503392,151.3,151.28,33.06]
[1749443807185,12.19775408,151.29,151.28,33.06]
[1749443807390,16.6193083,151.29,151.28,33.06]
[1749443807888,22.78308977,151.29,151.28,33.06]
[1749443808093,6.607,151.28,151.27,0.04352183]
[1749443808391,16.6198083,151.28,151.27,0.04352183]
[1749443808790,16.61524247,151.28,151.27,0.04352183]
[1749443808990,16.61544434,151.28,151.27,0.04352183]
[1749443809190,12.19825408,151.28,151.27,0.04352183]
[1749443809395,16.61579301,151.28,151.27,0.04352183]
[1749443810391,12.19825408,151.28,151.27,0.04352183]
[1749443810594,16.6151904,151.28,151.27,0.04352183]
[1749443811993,16.61493286,151.28,151.27,0.04352183]
[1749443812397,16.61485596,151.28,151.27,0.04352183]
[1749443812787,22.77863743,151.28,151.27,0.04352183]
[1749443813885,22.75634479,151.28,151.27,0.04352183]
[1749443814194,22.75614687,151.28,151.27,0.04352183]
[1749443815495,18.36203555,151.28,151.27,0.04352183]
[1749443815696,22.75527109,151.28,151.27,0.04352183]
[1749443816294,22.75536036,151.28,151.27,0.04352183]
[1749443817289,22.75486687,151.28,151.27,0.04352183]
[1749443817494,22.75585432,151.28,151.27,0.04352183]
[1749443817995,18.36203555,151.28,151.27,0.04352183]
[1749443818195,22.75594361,151.28,151.27,0.04352183]
[1749443818499,16.59216214,151.28,151.27,0.04352183]
[1749443818705,12.19825408,151.28,151.27,0.04352183]
[1749443818892,16.58081492,151.28,151.27,0.04352183]
[1749443819394,12.19825408,151.28,151.27,0.04352183]
[1749443819898,16.58167978,151.28,151.27,0.04352183]
[1749443820299,22.74546125,151.28,151.27,0.04352183]
[1749443820695,16.58155394,151.28,151.27,0.04352183]
[1749443820898,12.19825408,151.28,151.27,0.04352183]
[1749443821094,16.58155394,151.28,151.27,0.04352183]
[1749443821295,12.19825408,151.28,151.27,0.04352183]
[1749443821497,16.58157743,151.28,151.27,0.04352183]
[1749443822601,12.19825408,151.28,151.27,0.04352183]
[1749443822809,22.74435713,151.28,151.27,0.04352183]
[1749443823104,22.74361536,151.28,151.27,0.04352183]
[1749443824098,22.74243811,151.28,151.27,0.04352183]
[1749443824305,18.36203555,151.28,151.27,0.04352183]
[1749443824692,22.74260213,151.28,151.27,0.04352183]
[1749443824903,18.36203555,151.28,151.27,0.04352183]
[1749443825106,22.74217369,151.28,151.27,0.04352183]
[1749443825997,18.36203555,151.28,151.27,0.04352183]
[1749443826205,22.74154924,151.28,151.27,0.04352183]
[1749443826405,22.74046024,151.28,151.27,0.04352183]
[1749443827403,16.57667877,151.28,151.27,0.04352183]
[1749443827604,12.19825408,151.28,151.27,0.04352183]
[1749443827805,16.57588813,151.28,151.27,0.04352183]
[1749443828498,16.57597921,151.28,151.27,0.04352183]
[1749443829209,16.57569253,151.28,151.27,0.04352183]
[1749443829413,9.96868121,151.28,151.27,0.04352183]
[1749443830009,9.96764746,151.28,151.27,0.04352183]
[1749443830511,16.57464746,151.28,151.27,0.04352183]
[1749443830808,12.19825408,151.28,151.27,0.04352183]
[1749443831010,16.57468004,151.28,151.27,0.04352183]
[1749443831204,16.57465845,151.28,151.27,0.04352183]
[1749443831405,12.19825408,151.28,151.27,0.04352183]
[1749443831606,16.57463679,151.28,151.27,0.04352183]
[1749443831908,16.57400984,151.28,151.27,0.04352183]
[1749443832211,19.31926503,151.28,151.27,0.04352183]
[1749443832811,19.31865429,151.28,151.27,0.04352183]
[1749443833110,14.94350927,151.28,151.27,0.04352183]
[1749443833509,9.96607749,151.28,151.27,2.78877702]
[1749443833708,0.04503392,151.3,151.28,6.6066]
[1749443833911,5.56725817,151.29,151.28,2.74525519]
[1749443834307,5.56725817,151.29,151.28,9.35225519]
[1749443841615,0.04503392,151.3,151.29,6.6065]
[1749443841809,5.62974915,151.3,151.29,42.37175519]
[1749443842409,0.04503392,151.3,151.29,42.37175519]
[1749443842809,5.63000963,151.3,151.29,42.37175519]
[1749443843618,0.04503392,151.3,151.29,42.37175519]
[1749443844618,5.62966498,151.3,151.29,42.37175519]
[1749443846114,0.04503392,151.3,151.29,42.37175519]
[1749443847119,6.16378147,151.35,151.32,6.605]
[1749443847314,10.01120667,151.34,151.33,33.02]
[1749443847515,5.59833644,151.34,151.33,35.76525519]
[1749443848321,0.04861108,151.35,151.34,6.6043]
[1749443848619,5.64706616,151.35,151.34,9.34955519]
[1749443849220,5.64706616,151.35,151.34,10.88710497]
[1749443849422,0.04861108,151.35,151.34,10.88710497]
[1749443854428,5.55513952,151.39,151.37,6.6029]
[1749443854629,6.16378147,151.42,151.37,39.6029]
[1749443854922,16.59163821,151.41,151.37,39.6029]
[1749443855123,9.99003821,151.4,151.37,39.6029]
[1749443855328,5.55250045,151.39,151.37,39.64681225]
[1749443855524,0.05001389,151.4,151.37,39.64681225]
[1749443855724,5.5500447,151.39,151.37,39.64681225]
[1749443855924,0.05001389,151.4,151.37,39.64681225]
[1749443856129,5.55833953,151.39,151.37,39.64681225]
[1749443856329,5.55842966,151.39,151.38,6.6026]
[1749443856632,5.60656242,151.4,151.38,6.6026]
[1749443856830,0.05001389,151.4,151.38,6.6026]
[1749443857533,0.05001389,151.4,151.37,33.04391225]
[1749443857735,0.05001389,151.4,151.39,4.28280497]
[1749443858233,0.05001389,151.4,151.39,10.88500497]
[1749443871351,0.05001389,151.4,151.39,9.34238372]
[1749443879458,5.60972092,151.4,151.39,9.34238372]
[1749443881560,6.6026,151.38,151.37,35.78409597]
[1749443881761,5.55970703,151.38,151.37,35.78409597]
[1749443884269,5.55970703,151.38,151.37,42.38709597]
[1749443884471,0.05001389,151.4,151.37,35.78409597]
[1749443884667,0.05001389,151.4,151.39,2.74018372]
[1749443884861,5.62127557,151.4,151.39,9.34238372]
[1749443885065,0.05001389,151.4,151.39,9.34238372]
[1749443885763,5.57415998,151.43,151.41,6.601]
[1749443885957,6.12414252,151.45,151.42,2.74018372]
[1749443886163,6.12414252,151.45,151.44,2.74018372]
[1749443886362,16.16263849,151.45,151.44,2.74018372]
[1749443886568,6.6001,151.44,151.43,2.74018372]
[1749443886768,16.63859597,151.44,151.43,2.74018372]
[1749443887077,12.17160316,151.44,151.43,2.74018372]
[1749443887274,16.63747929,151.44,151.42,0.05005772]
[1749443887466,10.03737929,151.43,151.42,0.05005772]
[1749443887666,5.57150316,151.43,151.42,0.05005772]
[1749443887868,10.03732267,151.43,151.42,0.05005772]
[1749443888971,10.04057041,151.43,151.42,0.05005772]
[1749443889174,5.57150316,151.43,151.42,0.05005772]
[1749443889571,10.04555453,151.43,151.42,0.05005772]
[1749443889774,5.57150316,151.43,151.42,0.05005772]
[1749443890075,10.04558092,151.43,151.42,6.65095772]
[1749443890976,10.04395027,151.43,151.42,6.65095772]
[1749443891177,10.04376724,151.43,151.42,6.65095772]
[1749443891567,5.57150316,151.43,151.42,6.65095772]
[1749443891767,10.04409684,151.43,151.42,6.65095772]
[1749443892072,10.04401099,151.43,151.42,6.65095772]
[1749443892281,5.57150316,151.43,151.42,6.65095772]
[1749443892476,10.04655052,151.43,151.42,6.65095772]
[1749443892683,10.0465494,151.43,151.42,6.65095772]
[1749443892876,5.57150316,151.43,151.42,6.65095772]
[1749443894981,6.12414252,151.47,151.42,0.05005772]
[1749443895184,6.12414252,151.48,151.46,4.27989932]